Cogmind - Beta 14 @@@ ROGUE MODE // 2025.03.28 @ 11:28:52 Player: Zeta Lockhart Result: Destroyed by G-50 Soldier with Heavy Laser Performance ------------- Evolutions (4) 2000 Regions Visited (7) 1400 Robots Destroyed (177) 885 Value Destroyed (5039) 5039 Prototype IDs (7) 140 Alien Tech Used (0) 0 Bonus (1723) 1723 TOTAL SCORE: 11187 Bonus ------- High Alert Combat Kills 1349 Follower Combat Kills 419 Friendly Fire -45 Cogmind --------- Core Integrity 0/850 Matter 40/300 Energy 86/100 System Corruption 5% Temperature Cool (9) Movement Core (750) Ox14 Location -6/Factory Parts ------- > --- POWER (2) -------- (None) > --- PROPULSION (3) --- (None) > --- UTILITY (5) ------ High-capacity Storage Unit > --- WEAPON (5) ------- Heavy Machine Gun > --- INVENTORY (20) --- Light Nuclear Core Light Angular Momentum Engine F-cell Engine Wheel Wheel Wheel Wheel Wheel Compact Wheel Shock Rifle Shock Rifle Field Laser Heavy Laser Advanced Beam Cannon Peak State ------------ > --- POWER ------------ Improved Deuterium Engine Light Antimatter Reactor > --- PROPULSION ------- Armored Wheel Armored Huge Wheel > --- UTILITY ---------- Advanced Heat Sink Advanced Heat Sink Improved Cooling System High-capacity Storage Unit Layered Light Armor Plating > --- WEAPON ----------- Improved Lightning Gun Plasma Rifle Force Rifle Improved Heavy Machine Gun Improved Light Cannon > --- INVENTORY -------- Cooled Ion Engine Nuclear Core Light Nuclear Core Angular Momentum Engine Light Angular Momentum Engine F-cell Engine Wheel Wheel Compact Wheel Compact Wheel Advanced Heat Sink Advanced Heat Sink Spread Laser Plasma Rifle Advanced Beam Cannon Heavy Plasma Cannon Improved Assault Rifle Gauss Rifle Advanced Assault Cannon Gauss Cannon [Rating: 71] Favorites ----------- Power Light Nuclear Core Engine Cooled Ion Engine Power Core Light Nuclear Core Reactor Light Antimatter Reactor Propulsion Wheel Wheel Wheel Utility High-capacity Storage Unit Device Improved Heat Sink Storage High-capacity Storage Unit Processor Targeting Computer Protection Layered Light Armor Plating Weapon Light Assault Rifle Energy Gun Spread Laser Energy Cannon Heavy Ion Cannon Ballistic Gun Light Assault Rifle Ballistic Cannon Improved Light Cannon Build | -11 -10 -10 -9 -9 -8 -7 -6 ------- Run | Yrd Mat Min Mat Sto Mat Fac Fac Slots Evolved 8 | . . . 2 . 2 2 2 Power 1 | . . . . . . 1 . Propulsion 1 | . . . . . . 1 . Utility 3 | . . . 1 . 1 . 1 Weapon 3 | . . . 1 . 1 . 1 Parts Attached 126 | 7 3 2 11 19 11 21 52 Power 22 | 1 . 1 3 4 2 3 8 Engine 15 | 1 . 1 3 4 . 2 4 Core 6 | . . . . . 2 1 3 Reactor 1 | . . . . . . . 1 Propulsion 25 | 2 . . 2 2 2 7 10 Treads . | . . . . . . . . Leg . | . . . . . . . . Wheel 25 | 2 . . 2 2 2 7 10 Hover . | . . . . . . . . Flight . | . . . . . . . . Utility 28 | 2 2 . 1 5 3 4 11 Device 18 | 1 . . 1 2 2 2 10 Storage 3 | 1 1 . . . . 1 . Processor 2 | . 1 . . 1 . . . Hackware . | . . . . . . . . Protection 5 | . . . . 2 1 1 1 Artifact . | . . . . . . . . Weapon 51 | 2 1 1 5 8 4 7 23 Energy Gun 22 | 2 . 1 3 . 2 2 12 Energy Cannon 2 | . . . . . . 1 1 Ballistic Gun 19 | . 1 . 2 7 1 2 6 Ballistic Cannon 8 | . . . . 1 1 2 4 Launcher . | . . . . . . . . Special Weapon . | . . . . . . . . Impact Weapon . | . . . . . . . . Slashing Weapon . | . . . . . . . . Piercing Weapon . | . . . . . . . . Special Melee Weapon . | . . . . . . . . Unidentified Prototypes 7 | . . . . 4 . . 3 Parts Lost 57 | . . 2 4 5 1 7 38 Power 8 | . . . 1 . . 1 6 Propulsion 13 | . . 1 1 2 . 3 6 Utility 13 | . . . . 2 1 . 10 Weapon 23 | . . 1 2 1 . 3 16 Highest Loss Streak 18 | . . 2 3 2 1 3 18 To Critical Strikes 1 | . . 1 . . . . . Average Slot Usage (%) 94 | . 100 83 97 98 99 98 88 Engine 8 | . 14 14 10 11 4 7 6 Core 3 | . . . . . 4 6 5 Wheel 19 | . 28 15 19 21 18 21 14 Device 11 | . 1 . 11 4 10 15 18 Storage 8 | . 14 14 11 11 9 7 6 Processor 5 | . 12 14 11 11 7 . . Protection 4 | . . . . 5 9 7 3 Energy Gun 9 | . 19 10 7 5 8 6 14 Energy Cannon 1 | . . . . . . 2 3 Ballistic Gun 13 | . 8 14 25 20 18 9 6 Ballistic Cannon 5 | . . . . 6 9 9 5 Peak Build Rating 71 | 7 7 7 14 24 31 45 71 Average Rating 30 | 4 7 6 11 19 30 39 51 On Entrance 16 | . 7 7 7 14 24 31 43 Naked Turns . | . . . . . . . . Heaviest Build 91 | 12 46 47 55 66 70 82 91 Greatest Support 44 | 20 20 20 26 20 20 44 44 Greatest Overweight (x) 26 | . 2 4 4 5 3 3 26 Average Overweight (x) 2 | . . 3 1 2 3 1 2 Largest Inventory Capacity 20 | 8 20 20 20 20 20 20 20 Average Capacity 19 | 7 11 20 20 20 20 20 20 Most Carried 20 | 5 9 12 20 20 20 20 20 Average Carried 17 | 2 7 10 15 19 19 19 17 Final Capacity 20 | 8 20 20 20 20 20 20 20 Final Carried 20 | 4 9 12 20 20 20 19 14 Class Distribution -------------------- 31% | Scavenger-Tank 24% | Scavenger-Gunner 13% | Mutant 13% | Commander-Gunner 9% | Tank 6% | Gunner Dominant Class ---------------- Mutant | -10/Materials Mutant | -10/Mines Scavenger-Gunner | -9/Materials Commander-Gunner | -9/Storage Commander-Gunner | -8/Materials Scavenger-Tank | -7/Factory Scavenger-Tank | -6/Factory Resources | -11 -10 -10 -9 -9 -8 -7 -6 ----------- Run | Yrd Mat Min Mat Sto Mat Fac Fac Matter Collected 3378 | 270 21 52 296 551 369 713 1106 Remotely 440 | 144 . . 296 . . . . Salvage Created 7713 | 105 211 219 939 983 623 1419 3214 Parts 377 | 8 12 18 40 71 35 63 130 Haulers Intercepted 12 | . . . 1 4 3 2 2 Recyclers Shooed 18 | . . 2 6 1 1 . 8 Parts Field Recycled . | . . . . . . . . Retrieved Matter . | . . . . . . . . Parts Self-Destructed . | . . . . . . . . Prevented . | . . . . . . . . Kills | -11 -10 -10 -9 -9 -8 -7 -6 ------- Run | Yrd Mat Min Mat Sto Mat Fac Fac Combat Hostiles Destroyed 100 | . 5 5 8 16 7 23 36 Guns 69 | . 5 5 8 12 4 12 23 Cannons 25 | . . . . 3 3 9 10 AOE 3 | . . . . 1 . 2 . Classes Destroyed 15 | 2 2 . 3 2 1 2 3 Worker 17 | . . . . 3 . 7 7 Builder 12 | . . . . 1 2 1 8 Tunneler 2 | 2 . . . . . . . Hauler 12 | . . . 1 4 3 2 2 Recycler 26 | 1 1 1 6 1 3 5 8 Watcher 8 | . . . 2 1 . 3 2 Swarmer 21 | . 3 3 . 4 2 4 5 Grunt 50 | . 2 2 3 6 4 12 21 Duelist 1 | . . . . . . . 1 Protector 1 | . . . . . . . 1 Sentry 17 | . . . 5 6 . 5 1 Hunter 5 | . . . . . . 1 4 Programmer 3 | . . . . . . 1 2 Heavy 1 | . . . . . 1 . . Behemoth 1 | . . . . . . . 1 Best Kill Streak 11 | 3 6 3 4 5 8 6 11 Combat Bots Only 6 | . 5 3 3 4 3 6 5 Max Kills in Single Turn 3 | 1 1 2 1 2 1 3 2 Gunslinging 1 | . . 1 . . . . 1 Exploded 2 | . . . . 1 . 2 . Melee . | . . . . . . . . Uniques/NPCs Destroyed . | . . . . . . . . Combat | -11 -10 -10 -9 -9 -8 -7 -6 -------- Run | Yrd Mat Min Mat Sto Mat Fac Fac Hostile Shots Fired 758 | . 16 26 49 66 33 189 379 Missed 235 | . 3 7 14 24 12 63 112 Damage Taken 8068 | . 128 180 463 586 328 1583 4800 Core 1386 | . 56 43 73 99 62 193 860 Absorbed by Shields . | . . . . . . . . Core Remaining (%) 75 | 100 . 60 . 57 88 72 . Volleys Fired 371 | 9 23 29 47 57 24 66 116 Largest 5 | 2 2 2 3 3 4 4 5 Hottest 344 | 90 90 70 90 118 142 221 344 Shots Fired 1256 | 18 42 46 134 169 94 257 496 Gun 961 | 18 42 46 134 146 70 159 346 Cannon 295 | . . . . 23 24 98 150 Launcher . | . . . . . . . . Special . | . . . . . . . . Kinetic 691 | . 4 29 114 128 72 155 189 Thermal 518 | 18 38 17 20 41 22 93 269 Explosive . | . . . . . . . . Electromagnetic 47 | . . . . . . 9 38 Robot Hit Streak 27 | 5 9 12 27 24 9 10 20 Robot Miss Streak 10 | 2 8 3 3 3 5 10 7 Penetration Max 1 | . . . . . . . 1 Secondary Targets 5 | . . 1 . 2 . . 2 Max Gunslinging Chain 1 | . . 1 . 1 . . 1 Shots Hit Robots 778 | 12 24 35 86 106 50 152 313 Core Hits 490 | 4 10 16 37 44 32 126 221 Critical Kills 2 | . . . . . . . 2 Critical Parts Destroyed 2 | . . . . . 1 . 1 Critical Strikes 21 | 3 1 . 2 2 4 . 9 Burn 12 | 3 1 . 2 2 1 . 3 Meltdown 1 | . . . . . . . 1 Destroy 4 | . . . . . 1 . 3 Blast 4 | . . . . . 2 . 2 Melee Attacks . | . . . . . . . . Impact . | . . . . . . . . Slashing . | . . . . . . . . Piercing . | . . . . . . . . Sneak Attacks . | . . . . . . . . Combat Hostiles . | . . . . . . . . Follow-up Attacks . | . . . . . . . . Damage Inflicted 15947 | 151 278 306 960 1735 1033 3437 8047 Guns 11084 | 151 278 306 960 1351 784 2041 5213 Cannons 4368 | . . . . 297 249 1088 2734 Explosions 495 | . . . . 87 . 308 100 Melee . | . . . . . . . . Ramming . | . . . . . . . . Kinetic 7430 | . 17 157 807 1264 757 1742 2686 Thermal 7440 | 151 261 149 153 384 276 1334 4732 Explosive 395 | . . . . 87 . 308 . Electromagnetic 682 | . . . . . . 53 629 Impact . | . . . . . . . . Slashing . | . . . . . . . . Piercing . | . . . . . . . . Highest Corruption 5 | . . . . . . . 5 Average Corruption 2 | . . . . . . . 2 Corruption Purged . | . . . . . . . . Corruption Blocked . | . . . . . . . . Effects 7 | . . . . . . . 7 Energy Discharges 1 | . . . . . . . 1 Parts Rejected 1 | . . . . . . . 1 Data Loss (minor) 3 | . . . . . . . 3 Data Loss (major) 1 | . . . . . . . 1 Weapon Failures 1 | . . . . . . . 1 Overload Shots . | . . . . . . . . Overflow Damage 171 | . . . . 30 . 75 66 Projectiles 72 | . . . . . . 6 66 Explosions 99 | . . . . 30 . 69 . Melee . | . . . . . . . . Knockbacks 17 | . . . . 1 . 5 11 Impact . | . . . . . . . . Kinetic 17 | . . . . 1 . 5 11 Secondary . | . . . . . . . . Self-Inflicted Damage 288 | . . . . 58 . 163 67 Shots 6 | . . . . 1 . 3 2 Rammed . | . . . . . . . . Targets Rammed . | . . . . . . . . Kicked . | . . . . . . . . Crushed . | . . . . . . . . Highest Temperature 501 | 240 328 90 125 311 156 93 501 Average Temperature 59 | 112 111 33 35 73 45 24 72 Received Heat Transfer 2034 | . 54 30 198 219 132 366 1035 Effects 6 | . 2 . . . . . 4 Shutdowns 2 | . . . . . . . 2 Interference 2 | . 2 . . . . . . Damage (minor) 2 | . . . . . . . 2 Siege Activations . | . . . . . . . . Robots Corrupted . | . . . . . . . . Combat Hostiles . | . . . . . . . . Parts Fried 1 | . . . . . . . 1 Impact Corruptions . | . . . . . . . . Robots Melted 5 | . . . . . . . 5 Combat Hostiles 3 | . . . . . . . 3 Parts Melted 19 | . 1 . . . . 2 16 Heat Transferred 14186 | 619 768 349 592 1110 606 2372 7770 Parts Sabotaged . | . . . . . . . . Parts Stolen . | . . . . . . . . Parts Stripped . | . . . . . . . . Power Chain Reactions . | . . . . . . . . Alert | -11 -10 -10 -9 -9 -8 -7 -6 ------- Run | Yrd Mat Min Mat Sto Mat Fac Fac Peak Influence 1174 | 15 185 187 329 777 733 970 1174 Initial 475 | . 9 72 72 85 328 331 475 Average 496 | 5 129 153 195 414 505 590 792 Maximum Alert Level 4 | . . . 1 3 3 3 4 Low Security (%) 23 | 100 100 100 46 20 . . . Level 1 15 | . . . 53 31 37 4 . Level 2 39 | . . . . 36 47 77 43 Level 3 20 | . . . . 11 15 17 51 Level 4 1 | . . . . . . . 4 Level 5 . | . . . . . . . . High Security . | . . . . . . . . Max Security . | . . . . . . . . Squads Dispatched 31 | . 1 . 2 9 2 6 11 Investigation 5 | . . . . 4 . 1 . Extermination 3 | . . . . . . 1 2 Reinforcement 14 | . 1 . 2 1 2 2 6 Assault 3 | . . . . 1 . . 2 Garrison 6 | . . . . 3 . 2 1 Intercept . | . . . . . . . . Searches Triggered . | . . . . . . . . Construction Impeded 4 | . . . . . . 1 3 Haulers Reinforced 1 | . . . . . . . 1 Active Scanning Responses . | . . . . . . . . Cargo Convoy Interrupts . | . . . . . . . . Stealth | -11 -10 -10 -9 -9 -8 -7 -6 --------- Run | Yrd Mat Min Mat Sto Mat Fac Fac Distress Signals 10 | . 3 . 1 1 1 1 3 Communications Jammed . | . . . . . . . . Distress Signals . | . . . . . . . . Times Spotted 169 | . 10 5 14 27 17 30 66 Peak Tracking Total 11 | . 3 3 5 4 6 4 11 Tactical Retreats 3 | . 1 . . . . 1 1 Traps | -11 -10 -10 -9 -9 -8 -7 -6 ------- Run | Yrd Mat Min Mat Sto Mat Fac Fac Traps Triggered 4 | . . . . . . 1 3 Indirectly . | . . . . . . . . Trap Hack Attempts . | . . . . . . . . Triggered . | . . . . . . . . Disarmed . | . . . . . . . . Reprogrammed . | . . . . . . . . Reused . | . . . . . . . . Traps Extracted . | . . . . . . . . Installed . | . . . . . . . . Triggered . | . . . . . . . . Machines | -11 -10 -10 -9 -9 -8 -7 -6 ---------- Run | Yrd Mat Min Mat Sto Mat Fac Fac Machines Disabled 29 | . . . . 4 1 11 13 Max in Single Turn 4 | . . . . 2 1 4 4 Garrison Access 2 | . . . . . 1 . 1 Machines Repaired . | . . . . . . . . Machines Dismantled . | . . . . . . . . Machines Sabotaged . | . . . . . . . . Overloaded Fab Kills . | . . . . . . . . Hacking | -11 -10 -10 -9 -9 -8 -7 -6 --------- Run | Yrd Mat Min Mat Sto Mat Fac Fac Machines Accessed 22 | . 2 . 2 12 1 3 2 Terminals 17 | . 2 . 2 11 . 2 . Fabricators 1 | . . . . . . . 1 Repair Stations . | . . . . . . . . Recycling Units . | . . . . . . . . Scanalyzers . | . . . . . . . . Garrison Access 4 | . . . . 1 1 1 1 Total Hacks 50 | . 3 . 4 29 2 5 7 Successful 22 | . 3 . 1 14 1 1 2 Failed 28 | . . . 3 15 1 4 5 Catastrophic 5 | . . . . 4 . 1 . Database Lockouts . | . . . . . . . . Manual . | . . . . . . . . Terminals 37 | . 3 . 4 27 . 3 . Fabricators 2 | . . . . . . . 2 Repair Stations . | . . . . . . . . Recycling Units . | . . . . . . . . Scanalyzers . | . . . . . . . . Garrison Access 11 | . . . . 2 2 2 5 Terminal Hacks 19 | . 3 . 1 14 . 1 . Open Door 5 | . . . . 5 . . . Branch Access Points 2 | . 1 . 1 . . . . Locate Traps 5 | . 1 . . 3 . 1 . Patrol Status 1 | . . . . 1 . . . Reinforcement Status 1 | . . . . 1 . . . Zone Layout 5 | . 1 . . 4 . . . Fabricator Hacks 1 | . . . . . . . 1 Build 1 | . . . . . . . 1 Repair Station Hacks . | . . . . . . . . Recycling Unit Hacks . | . . . . . . . . Scanalyzer . | . . . . . . . . Garrison Access Hacks 2 | . . . . . 1 . 1 Seal Access 2 | . . . . . 1 . 1 Unauthorized Hacks . | . . . . . . . . Terminals . | . . . . . . . . Fabricators . | . . . . . . . . Repair Stations . | . . . . . . . . Recycling Units . | . . . . . . . . Scanalyzers . | . . . . . . . . Garrison Access . | . . . . . . . . Data Cores Recovered . | . . . . . . . . Used . | . . . . . . . . Hacking Detections 15 | . 1 . 2 7 . 3 2 Full Trace Events 4 | . . . . 3 . 1 . Feedback Events . | . . . . . . . . Feedback Blocked . | . . . . . . . . Robot Schematics Acquired . | . . . . . . . . Robots Built . | . . . . . . . . Authchips . | . . . . . . . . Time 27 | . . . . . . . 27 Total Robot Build Rating . | . . . . . . . . Part Schematics Acquired . | . . . . . . . . Parts Built . | . . . . . . . . Authchips . | . . . . . . . . Time . | . . . . . . . . Total Part Build Rating . | . . . . . . . . Parts Repaired . | . . . . . . . . Time . | . . . . . . . . Parts Recycled . | . . . . . . . . Recycled Matter . | . . . . . . . . Retrieved Matter . | . . . . . . . . Retrieved Components . | . . . . . . . . Parts Scanalyzed . | . . . . . . . . Part Schematics Acquired . | . . . . . . . . Parts Damaged . | . . . . . . . . Bothacking | -11 -10 -10 -9 -9 -8 -7 -6 ------------ Run | Yrd Mat Min Mat Sto Mat Fac Fac Used RIF Installer . | . . . . . . . . Robots Hacked . | . . . . . . . . Non-combat . | . . . . . . . . Combat . | . . . . . . . . Robot Hacks Applied . | . . . . . . . . Relay Couplers Released . | . . . . . . . . Fabnet Peak Effective % . | . . . . . . . . Robots Rewired . | . . . . . . . . Allies Hacked . | . . . . . . . . Hacks Repelled . | . . . . . . . . Allies | -11 -10 -10 -9 -9 -8 -7 -6 -------- Run | Yrd Mat Min Mat Sto Mat Fac Fac Total Allies 10 | . . . . 10 . . . Largest Group 10 | . . . . 10 8 . . Highest-Rated Group 88 | . . . . 88 72 . . Highest-Rated Ally 16 | . . . . 16 16 . . Total Orders . | . . . . . . . . Ally Attacks 123 | . . . . 57 66 . . Total Damage 1000 | . . . . 460 540 . . Kills 20 | . . . . 11 9 . . Allies Corrupted . | . . . . . . . . Allies Melted . | . . . . . . . . Intel | -11 -10 -10 -9 -9 -8 -7 -6 ------- Run | Yrd Mat Min Mat Sto Mat Fac Fac Robot Analysis Total . | . . . . . . . . Derelict Logs Recovered 1 | . . 1 . . . . . Drone Launches . | . . . . . . . . Drone Recoveries . | . . . . . . . . Exploration | -11 -10 -10 -9 -9 -8 -7 -6 ------------- Run | Yrd Mat Min Mat Sto Mat Fac Fac Turns Passed 4671 | 91 246 303 538 911 264 1062 1256 Spaces Moved 2561 | 64 180 162 292 553 125 633 552 Core 17 | 15 . . . . . . 2 Treads . | . . . . . . . . Legs . | . . . . . . . . Wheels 2544 | 49 180 162 292 553 125 633 550 Hover . | . . . . . . . . Flight . | . . . . . . . . Fastest Speed 50 | 50 80 110 105 110 125 105 110 Average Speed 117 | 72 91 138 111 119 125 115 127 Slowest Speed 1350 | 80 110 140 140 155 125 130 1350 Overloaded Moves . | . . . . . . . . Propulsion Burnouts . | . . . . . . . . Robots Hopped . | . . . . . . . . Cave-ins Triggered . | . . . . . . . . Exploration Rate (%) 33 | 6 34 46 24 92 20 22 24 Regions Visited 7 Branch Regions 2 Pre-discovered Areas . | . . . . . . . . Known Exits Taken 2 | . 1 . 1 . . . . Unknown Exits Taken 5 | 1 . 1 . 1 1 1 . Scrap Searched 2 | . . 2 . . . . . Spaces Dug . | . . . . . . . . Terrain Destroyed 145 | . . . . 12 5 43 85 Melee . | . . . . . . . . Projectile 30 | . . . . 2 5 5 18 AOE 115 | . . . . 10 . 38 67 Terrain Rammed . | . . . . . . . . Walls Destroyed . | . . . . . . . . Machines Disabled . | . . . . . . . . Actions | -11 -10 -10 -9 -9 -8 -7 -6 --------- Run | Yrd Mat Min Mat Sto Mat Fac Fac Total 3444 | 90 220 201 420 691 182 812 828 Wait 206 | . 5 3 53 29 1 64 51 Move 2554 | 63 179 161 291 552 124 632 552 Hop . | . . . . . . . . Pick Up 110 | 11 7 5 16 13 9 12 37 Fast Attach 20 | . . . . 8 2 7 3 Attach 64 | 7 . 1 7 4 2 6 37 Detach 1 | . . . . . . . 1 Swap 42 | . 3 1 4 7 7 8 12 Drop 74 | . 3 1 2 19 13 17 19 Fire 371 | 9 23 29 47 57 24 66 116 Melee . | . . . . . . . . Ram . | . . . . . . . . Kick . | . . . . . . . . Crush . | . . . . . . . . Escape Stasis . | . . . . . . . . Rewire 2 | . . . . 2 . . . Trap . | . . . . . . . . Miscellaneous . | . . . . . . . . Route ------- -11/Scrapyard -10/Materials (discovered 3 exits: *Mat x2 / *Min) -10/Mines -9/Materials (discovered 4 exits: Min x2 / *Sto x2) -9/Storage -8/Materials -7/Factory -6/Factory History --------- Turn | Location | Event 18 | -11/Scrapyard | Discovered new exit (range 15) 92 | -11/Scrapyard | Entered Materials 207 | -10/Materials | Identified exit to Mines 211 | -10/Materials | Discovered new exit (range 17) 300 | -10/Materials | Build established: Mutant 302 | -10/Materials | Discovered new exit (range 5) 338 | -10/Materials | Entered Mines 365 | -10/Mines | Met a Derelict bent on vengeance 557 | -10/Mines | Learned Materials security intel 613 | -10/Mines | Discovered new exit (range 8) 641 | -10/Mines | Entered Materials 641 | -9/Materials | Evolved 2 slots: Utility x1, Weapon x1 931 | -9/Materials | Build established: Scavenger-Gunner 1000 | -9/Materials | Identified exit to Mines 1000 | -9/Materials | Identified exit to Storage 1123 | -9/Materials | Lost 3 parts (1p1n1w) 1179 | -9/Materials | Entered Storage 1431 | -9/Storage | Garrison activated, responded to threat 1615 | -9/Storage | Assisted by bots powering up and referring to "LRC-V3" 1913 | -9/Storage | Build established: Commander-Gunner 1979 | -9/Storage | First assault squad dispatched 2066 | -9/Storage | Discovered new exit (range 12) 2090 | -9/Storage | Entered Materials 2090 | -8/Materials | Accompanied by 8 allies 2090 | -8/Materials | Evolved 2 slots: Utility x1, Weapon x1 2240 | -8/Materials | Lost 4 allies 2307 | -8/Materials | Discovered new exit (range 10) 2344 | -8/Materials | Lost 4 allies 2354 | -8/Materials | Entered Factory 2354 | -7/Factory | Evolved 2 slots: Power x1, Propulsion x1 2586 | -7/Factory | Build established: Scavenger-Tank 3144 | -7/Factory | Lost 3 parts (1p1n1w) 3272 | -7/Factory | Garrison activated, responded to threat 3294 | -7/Factory | Build established: Tank 3343 | -7/Factory | Discovered new exit (range 15) 3416 | -7/Factory | Entered another Factory area 3416 | -6/Factory | Evolved 2 slots: Utility x1, Weapon x1 3531 | -6/Factory | Garrison activated, responded to threat 3642 | -6/Factory | Build established: Scavenger-Tank 3913 | -6/Factory | Lost 3 parts (2u1w) 4116 | -6/Factory | First assault squad dispatched 4196 | -6/Factory | Spotted B-75 Beast 4278 | -6/Factory | Destroyed B-75 Beast 4299 | -6/Factory | Core integrity fell below 50% 4349 | -6/Factory | Lost 15 parts (3p1n4u7w) 4586 | -6/Factory | Build established: Scavenger-Gunner 4661 | -6/Factory | Core integrity fell below 20% 4672 | -6/Factory | Destroyed by G-50 Soldier with Heavy Laser Last Messages --------------- 04657_ Wheel destroyed. 04657_ Arc Projector destroyed. 04657_ Imp. Heat Sink destroyed. 04658_ K-01 Serf collects debris. 04658_ Nuclear Core destroyed. 04659_ S-27 Virus destroyed. 04659_ K-01 Serf collects debris. 04660_ Shock Rifle destroyed. 04661_ S-27 Virus destroyed. 04661_ K-01 Serf collects debris. 04662_ G-50 Soldier knocked back. 04662_ K-01 Serf collects debris. 04664_ System corrupted: Substantial component data lost. 04665_ K-01 Serf collects debris. 04668_ R-10 Processor collects Autogun. 04670_ Acquired 30 matter. 04670_ K-01 Serf collects debris. 04670_ R-10 Processor destroyed. 04670_ Magnetic Acceleration Cannon destroyed. 04671_ K-01 Serf collects debris. Map ----- +----------------------------------------------------+ | ??????????????# """" """ """ | | ??????????????# """" """" """ !![ | | ??????????????# """" """" """ ![ | | ??????????#####+#####+### """" """" ! | | ??????????# # """" ?""" | | ??????????# # """" """" | | ??????????# " " """ """ # """" """" | | ??????????# "G" """ """ # | | ??????????# " """ """ # """ """" """"^ % | | ??????????# # """ """" """" ^ = | | ??????????############### """ """" """" ! | | ????????????????????????# """" """" %= | | ????????????????????????# """" """ !"!!% | | ????????????????????????# """? """" [=== | | ????????????????????????# """" """" *=! | | ????????????????????????# %= | | ????????????????????????# % !%%% | | ????????????????????????# ###########+# | | ????????????????????????# #???????? | | ????????????????????????# #?????? | | ????????????????????????# """" #????? | | ????????????????????????# w """" #????# | | ????????????????????????#=! """" #????# | | ????????????????????????#%A[k"""" #????# | | ????????????????????????#=[ k"""" #????# | | ??????????# ###+#####@[ """ #????# | | ??????????# ! =%%!%|!!! =! #????# | | ??????????# %%[!%=%s]==%% ###### | | ??????????#^ % [^%%!%!*=%!=!% u + | | ??????????# """""""""%*!* ######?? | | ??????????????? !=* % #????????#### | | ???????????????"""""""" g ####+#+#???????????? | | ???????????????? #???? ????????????? | | ?????????????????"""""" p #????? ??????????? | | ????????????????? g g +??????? ??????????? | | ??????????????????""""" g # ?????????????????? | | ??????????????????? % # ????????????????? | | ??????????????????? [ % #? ????????????????? | | ???????????????????T##### R#?? ???????????????? | | ????????????????????????# o#?? ??????????????? | | ????????????????????????# #??????????????????? | | ????????????????????????# #??????????????????? | | ????????????????????????# ???????????????????? | | ????????????????????????? ???????????????????? | | ??????????????????????????? ???????????????????? | | ?????????????????????????????????????????????????? | | ?????????????????????????????????????????????????? | | ?????????????????????????????????????????????????? | | ?????????????????????????????????????????????????? | | ?????????????????????????????????????????????????? | +----------------------------------------------------+ Best States ------------- Heat Dissipation 110 Energy Generation 32 Energy Capacity 470 Matter Stores 300 Matter Capacity 300 Sight Range 16 Terrain Scan Density 10 Armor Coverage 225 Evasion (%) 50 Targeting Accuracy 11 Item Schematics ----------------- None Robot Schematics ------------------ None Fabricated ------------ Nothing Alien Tech Used ----------------- None Achievements -------------- None Challenges ------------ None Game ------ Seed InertialMagneticShielding Manual? 0 Play Time 01:04:26 Cumulative 73.1 hours Start 2025.03.28 @ 10:22:38 End 2025.03.28 @ 11:28:52 Sessions 1 Manual Loads 0 Difficulty Rogue Special Mode None Game No. 71 Rogue 71 Adventurer 0 Explorer 0 Win Type - Total 0 Types 0/0/0/0/0/0/0/0/0 Lore% 7 Gallery% 37 Achievement% 31 Wizard Run 0 Options --------- Layout 0 ASCII 0 Keyboard 0 Movement Mouse Keybinds 0 Fullscreen 2 Font 12/Smallcaps Map View 41x27 Zoom Use 97% Tactical HUD 1 Map Filters NONE Filters NONE Steam 1 RUN: ec76e825-6f06-4516-a89d-14d90b90dbdf